fUSD/lending_fUSD_20260301
["ID","MTS","AMOUNT","RATE_DAILY","PERIOD"]
[406963675,1772363440952,-4000.0,0.00012296,2]
[406963676,1772363440963,-236.961797,0.00012312,2]
[406963677,1772363440974,-255.0,0.00012379,2]
[406963678,1772363440985,-308.77176682,0.000125,2]
[406963680,1772363440996,-200.0,0.00012514,2]
[406963682,1772363441008,-4000.0,0.00012589,2]
[406963684,1772363441019,-2351.0,0.00012647,2]
[406963685,1772363441030,-4000.0,0.00012881,2]
[406963686,1772363441041,-5630.08383952,0.00013,2]
[406963687,1772363441053,-1455.21702499,0.00013,15]
[406963688,1772363441064,-17141.94492374,0.00013033,2]
[406963689,1772363441076,-920.94,0.000133,2]
[406963690,1772363441088,-433.0,0.00013535,2]
[406963691,1772363441100,-500.0,0.00013698,2]
[406963692,1772363441111,-500.0,0.00013698,2]
[406963693,1772363441123,-500.0,0.00013698,2]
[406963694,1772363441135,-500.0,0.00013698,2]
[406963695,1772363441148,-159.80083652,0.00013698,2]
[406963696,1772363441159,-500.0,0.00013698,2]
[406963697,1772363441170,-500.0,0.00013698,2]
[406963698,1772363441182,-500.0,0.00013698,2]
[406963699,1772363441194,-500.0,0.00013698,2]
[406963700,1772363441205,-500.0,0.00013698,2]
[406963701,1772363441216,-500.0,0.00013698,2]
[406963702,1772363441228,-500.0,0.00013698,2]
[406963703,1772363441239,-500.0,0.00013698,2]
[406963704,1772363441251,-500.0,0.00013698,2]
[406963705,1772363441262,-500.0,0.00013698,2]
[406963706,1772363441274,-500.0,0.00013698,2]
[406963707,1772363441286,-500.0,0.00013698,2]
[406963708,1772363441297,-500.0,0.00013698,2]
[406963709,1772363441309,-500.0,0.00013698,2]
[406963710,1772363441320,-500.0,0.00013698,2]
[406963711,1772363441332,-500.0,0.00013698,2]
[406963712,1772363441343,-500.0,0.00013698,2]
[406963713,1772363441355,-500.0,0.00013698,2]
[406963714,1772363441366,-454.69204283,0.00013698,2]
[406963715,1772363441377,-604.16,0.00013698,2]
[406963716,1772363441389,-500.0,0.00013698,2]
[406963717,1772363441401,-500.0,0.00013698,2]
[406963718,1772363441413,-405.61,0.00013698,2]
[406963719,1772363441424,-500.0,0.00013698,2]
[406963720,1772363441436,-500.0,0.00013698,2]
[406963721,1772363441447,-500.0,0.00013698,2]
[406963722,1772363441459,-500.0,0.00013698,2]
[406963723,1772363441470,-500.0,0.00013698,2]
[406963724,1772363441481,-500.0,0.00013698,2]
[406963725,1772363441494,-500.0,0.00013698,2]
[406963726,1772363441505,-500.0,0.00013698,2]
[406963727,1772363441517,-500.0,0.00013698,2]
[406963728,1772363441530,-500.0,0.00013698,2]
[406963729,1772363441543,-500.0,0.00013698,2]
[406963730,1772363441553,-500.0,0.00013698,2]
[406963731,1772363441562,-500.0,0.00013698,2]
[406963732,1772363441573,-152.43247842,0.00013698,2]
[406963733,1772363441583,-500.0,0.00013698,2]
[406963734,1772363441739,-500.0,0.00013698,2]
[406963735,1772363441768,-500.0,0.00013698,2]
[406963736,1772363441779,-500.0,0.00013698,2]
[406963737,1772363441789,-500.0,0.00013698,2]
[406963738,1772363441798,-500.0,0.00013698,2]
[406963739,1772363441807,-500.0,0.00013698,2]
[406963740,1772363441816,-500.0,0.00013698,2]
[406963741,1772363441825,-500.0,0.00013698,2]
[406963742,1772363441834,-500.0,0.00013698,2]
[406963743,1772363441843,-500.0,0.00013698,2]
[406963744,1772363441855,-500.0,0.00013698,2]
[406963745,1772363441866,-500.0,0.00013698,2]
[406963746,1772363441877,-500.0,0.00013698,2]
[406963747,1772363441887,-500.0,0.00013698,2]
[406963748,1772363441896,-500.0,0.00013698,2]
[406963749,1772363441905,-281.18620333,0.00013698,2]
[406963750,1772363441915,-500.0,0.00013698,2]
[406963751,1772363441926,-500.0,0.00013698,2]
[406963752,1772363441935,-500.0,0.00013698,2]
[406963753,1772363441944,-500.0,0.00013698,2]
[406963754,1772363441954,-500.0,0.00013698,2]
[406963755,1772363441963,-500.0,0.00013698,2]
[406963756,1772363441973,-500.0,0.00013698,2]
[406963757,1772363441983,-500.0,0.00013698,2]
[406963758,1772363441992,-500.0,0.00013698,2]
[406963759,1772363442002,-500.0,0.00013698,2]
[406963760,1772363442011,-500.0,0.00013698,2]
[406963761,1772363442020,-500.0,0.00013698,2]
[406963762,1772363442030,-500.0,0.00013698,2]
[406963763,1772363442039,-500.0,0.00013698,2]
[406963764,1772363442048,-500.0,0.00013698,2]
[406963765,1772363442058,-500.0,0.00013698,2]
[406963766,1772363442067,-500.0,0.00013698,2]
[406963767,1772363442077,-391.70323882,0.00013698,2]
[406963768,1772363442087,-548.83,0.00013699,2]
[406963769,1772363442096,-200.0,0.00013699,2]
[406963770,1772363442106,-17141.94492374,0.00013844,2]
[406963771,1772363442116,-6200.0,0.000139,5]
[406963772,1772363442126,-772.0,0.00013911,2]
[406963773,1772363442135,-519.0,0.0001411,2]
[406963774,1772363442144,-573.25431665,0.00014153,2]
[406963775,1772363442154,-1531.92,0.00014231,2]
[406963776,1772363442164,-150.0,0.0001428,2]
[406963777,1772363442173,-250.0,0.00014364,2]
[406963778,1772363442183,-548.83,0.00014384,2]
[406963779,1772363442192,-768.03546614,0.00014637,2]
[406963780,1772363442202,-2105.56887116,0.00014637,2]
[406963781,1772363442211,-17141.94492374,0.00014656,2]
[406963782,1772363442221,-200.0,0.00014682,2]
[406963783,1772363442230,-736.0,0.00014792,2]
[406963784,1772363442240,-2978.97,0.00014916,2]
[406963785,1772363442249,-250.0,0.00015,2]
[406963786,1772363442258,-548.83,0.00015068,2]
[406963787,1772363442268,-3060.70768694,0.00015145,2]
[406963788,1772363442401,-179.29231306,0.00015145,2]
[406963789,1772363442411,-1000.0,0.00015364,2]
[406963790,1772363442420,-284.354156,0.0001539,7]
[406963791,1772363442430,-548.83,0.00015753,2]
[406963792,1772363442439,-748.601069,0.00015913,7]
[406963793,1772363442449,-3324.761394,0.00015913,7]
[406963794,1772363442458,-714.0,0.00016162,2]
[406963795,1772363442468,-16518.32163661,0.000162,5]
[406963796,1772363442477,-548.83,0.00016438,2]
[406963797,1772363442486,-153.04785948,0.00016447,2]
[406963798,1772363442496,-9435.89,0.00016633,2]
[406963799,1772363442506,-300.0,0.00017,2]
[406963800,1772363442515,-12316.36,0.00017057,2]
[406963801,1772363442525,-644.79446246,0.00017099,2]
[406963802,1772363442535,-444.48,0.00017125,2]
[406963803,1772363442543,-668.65185757,0.00017154,2]
[406963804,1772363442553,-693.3919763,0.00017209,2]
[406963805,1772363442562,-719.04747942,0.00017264,2]
[406963806,1772363442572,-927.0,0.00017319,2]
[406963807,1772363442581,-1375.0,0.00017319,2]
[406963808,1772363442590,-745.65223616,0.00017319,2]
[406963809,1772363442601,-444.48,0.00017345,2]
[406963810,1772363442610,-168.0,0.00017345,2]
[406963811,1772363442619,-215.17,0.0001736,2]
[406963812,1772363442628,-773.2413689,0.00017374,2]
[406963813,1772363442637,-801.85129955,0.00017429,2]
[406963814,1772363442647,-1340.0,0.0001744,2]
[406963815,1772363442656,-1041.0,0.0001744,2]
[406963816,1772363442665,-3500.0,0.0001744,2]
[406963817,1772363442674,-619.0,0.0001744,2]
[406963818,1772363442682,-1278.0,0.0001744,2]
[406963819,1772363442691,-921.0,0.0001744,2]
[406963820,1772363442701,-1211.0,0.0001744,2]
[406963821,1772363442711,-5985.0,0.0001744,2]
[406963822,1772363442720,-2457.0,0.0001744,2]
[406963823,1772363442730,-4575.0,0.0001744,2]
[406963824,1772363442740,-831.51979763,0.00017484,2]
[406963825,1772363442749,-444.48,0.00017531,2]
[406963826,1772363442759,-862.28603014,0.00017539,2]
[406963827,1772363442768,-894.19061326,0.00017594,2]
[406963828,1772363442778,-1200.0,0.000176,6]
[406963829,1772363442787,-1078.11377364,0.0001764,2]
[406963830,1772363442799,-1019.83025026,0.0001764,2]
[406963831,1772363442809,-1044.32785186,0.0001764,2]
[406963832,1772363442819,-1020.74041071,0.0001764,2]
[406963833,1772363442828,-1131.78497998,0.0001764,2]
[406963834,1772363442838,-1089.18612721,0.0001764,2]
[406963835,1772363442850,-1024.82341065,0.0001764,2]
[406963836,1772363442860,-1086.63221756,0.0001764,2]
[406963837,1772363442870,-1057.87478385,0.0001764,2]
[406963838,1772363442880,-1032.0616137,0.0001764,2]
[406963839,1772363442891,-1104.76064659,0.0001764,2]
[406963840,1772363442900,-1079.18628013,0.0001764,2]
[406963841,1772363442910,-1088.43005241,0.0001764,2]
[406963842,1772363442921,-1622.76658562,0.0001764,2]
[406963843,1772363442930,-452.91209636,0.0001764,2]
[406963844,1772363442940,-927.27566595,0.00017649,2]
[406963845,1772363442949,-150.46192768,0.00017699,2]
[406963846,1772363442959,-500.0,0.00017699,2]
[406963847,1772363442968,-500.0,0.00017699,2]
[406963848,1772363442978,-500.0,0.00017699,2]
[406963849,1772363442987,-500.0,0.00017699,2]
[406963850,1772363442997,-500.0,0.00017699,2]
[406963851,1772363443007,-918.0,0.00017699,2]
[406963852,1772363443016,-167.92228215,0.00017699,2]
[406963853,1772363443026,-150.97072688,0.00017699,2]
[406963854,1772363443036,-153.944406,0.00017699,2]
[406963855,1772363443046,-150.29269082,0.00017699,2]
[406963856,1772363443055,-150.0,0.00017699,2]
[406963857,1772363443065,-150.8717147,0.00017699,2]
[406963858,1772363443074,-500.0,0.00017699,2]
[406963859,1772363443084,-150.0,0.00017699,2]
[406963860,1772363443093,-500.0,0.00017699,2]
[406963861,1772363443103,-500.0,0.00017699,2]
[406963862,1772363443112,-500.0,0.00017699,2]
[406963863,1772363443121,-150.0,0.00017699,2]
[406963864,1772363443130,-500.0,0.00017699,2]
[406963865,1772363443139,-150.0,0.00017699,2]
[406963866,1772363443149,-1200.0,0.000177,6]
[406963867,1772363443158,-2000.0,0.000177,2]
[406963868,1772363443167,-961.58486559,0.00017704,2]
[406963869,1772363443176,-500.0,0.00017727,2]
[406963870,1772363443185,-7960.06,0.00017728,2]
[406963871,1772363443194,-9999.99,0.00017728,2]
[406963872,1772363443204,-150.99,0.00017728,2]
[406963873,1772363443213,-9999.99,0.00017728,2]
[406963874,1772363443222,-299.99,0.00017728,4]
[406963875,1772363443231,-9999.99,0.00017728,2]
[406963876,1772363443241,-36915.92,0.00017728,2]
[406963877,1772363443250,-8712.46,0.00017728,2]
[406963878,1772363443259,-150.99,0.00017728,2]
[406963879,1772363443269,-999.99,0.00017728,2]
[406963880,1772363443279,-444.50629323,0.00017752,2]
[406963881,1772363443288,-500.0,0.00017754,2]
[406963882,1772363443297,-500.0,0.00017754,2]
[406963883,1772363443306,-500.0,0.00017754,2]
[406963884,1772363443316,-500.0,0.00017754,2]
[406963885,1772363443325,-500.0,0.00017754,2]
[406963886,1772363443335,-918.0,0.00017754,2]
[406963887,1772363443344,-500.0,0.00017754,2]
[406963888,1772363443354,-150.0,0.00017754,2]
[406963889,1772363443363,-362.28374388,0.00017754,2]
[406963890,1772363443373,-500.0,0.00017754,2]
[406963891,1772363443382,-500.0,0.00017754,2]
[406963892,1772363443394,-500.0,0.00017754,2]
[406963893,1772363443406,-997.16350561,0.00017759,2]
[406963894,1772363443416,-168.0,0.00017789,2]
[406963895,1772363443427,-1200.0,0.000178,6]
[406963896,1772363443437,-500.0,0.00017808,2]
[406963897,1772363443447,-500.0,0.00017808,2]
[406963898,1772363443459,-500.0,0.00017808,2]
[406963899,1772363443468,-500.0,0.00017808,2]
[406963900,1772363443477,-500.0,0.00017808,2]
[406963901,1772363443487,-500.0,0.00017808,2]
[406963902,1772363443496,-500.0,0.00017808,2]
[406963903,1772363443507,-500.0,0.00017808,2]
[406963904,1772363443517,-500.0,0.00017808,2]
[406963905,1772363443528,-500.0,0.00017808,2]
[406963907,1772363443538,-500.0,0.00017808,2]
[406963908,1772363443547,-500.0,0.00017808,2]
[406963909,1772363443557,-500.0,0.00017808,2]
[406963910,1772363443566,-593.75480595,0.00017808,2]
[406963911,1772363443576,-500.0,0.00017808,2]
[406963913,1772363443585,-500.0,0.00017808,2]
[406963915,1772363443594,-500.0,0.00017808,2]
[406963917,1772363443604,-500.0,0.00017808,2]
[406963919,1772363443613,-500.0,0.00017808,2]
[406963920,1772363443622,-500.0,0.00017808,2]
[406963922,1772363443632,-500.0,0.00017808,2]
[406963924,1772363443642,-500.0,0.00017808,2]
[406963926,1772363443651,-500.0,0.00017808,2]
[406963928,1772363443660,-500.0,0.00017808,2]
[406963930,1772363443669,-450.0,0.00017808,2]
[406963932,1772363443678,-500.0,0.00017808,2]
[406963934,1772363443691,-500.0,0.00017808,2]
[406963936,1772363443700,-500.0,0.00017808,2]
[406963937,1772363443709,-150.0,0.00017808,2]
[406963938,1772363443718,-800.0,0.00017808,2]
[406963939,1772363443729,-500.0,0.00017809,2]
[406963940,1772363443738,-500.0,0.00017809,2]
[406963941,1772363443747,-500.0,0.00017809,2]
[406963942,1772363443756,-500.0,0.00017809,2]
[406963943,1772363443765,-500.0,0.00017809,2]
[406963944,1772363443774,-918.0,0.00017809,2]
[406963945,1772363443783,-500.0,0.00017809,2]
[406963946,1772363443792,-150.0,0.00017809,2]
[406963947,1772363443801,-500.0,0.00017809,2]
[406963948,1772363443811,-500.0,0.00017809,2]
[406963949,1772363443820,-150.0,0.00017809,2]
[406963950,1772363443830,-168.0,0.00017859,2]
[406963951,1772363443839,-150.0,0.00017863,2]
[406963952,1772363443852,-500.0,0.00017863,2]
[406963953,1772363443861,-500.0,0.00017863,2]
[406963954,1772363443871,-500.0,0.00017863,2]
[406963955,1772363443880,-150.0,0.00017863,2]
[406963956,1772363443890,-500.0,0.00017863,2]
[406963957,1772363443899,-500.0,0.00017863,2]
[406963958,1772363443908,-500.0,0.00017863,2]
[406963959,1772363443920,-918.0,0.00017863,2]
[406963960,1772363443928,-575.46692687,0.00017863,2]
[406963961,1772363443938,-408.30233963,0.00017863,2]
[406963962,1772363443947,-159.26908441,0.00017863,2]
[406963963,1772363443957,-155.23642035,0.000179,2]
[406963964,1772363443967,-1200.0,0.000179,6]
[406963965,1772363443976,-768.03546614,0.000179,2]
[406963966,1772363443985,-2105.56887116,0.000179,2]
[406963967,1772363443996,-5702.0,0.000179,2]
[406963968,1772363444005,-150.0,0.00017918,2]
[406963969,1772363444015,-614.66750726,0.00017918,2]
[406963970,1772363444024,-500.0,0.00017918,2]
[406963971,1772363444033,-500.0,0.00017918,2]
[406963972,1772363444043,-500.0,0.00017918,2]
[406963973,1772363444053,-918.0,0.00017918,2]
[406963974,1772363444063,-168.0,0.00017918,2]
[406963975,1772363444073,-150.0,0.00017972,2]
[406963976,1772363444083,-500.0,0.00017973,2]
[406963977,1772363444093,-500.0,0.00017973,2]
[406963978,1772363444103,-918.0,0.00017973,2]
[406963979,1772363444112,-455.85471583,0.0001799,2]
[406963980,1772363444121,-168.0,0.0001799,2]
[406963981,1772363444131,-151.0,0.00017997,2]
[406963982,1772363444140,-2444.8774571,0.00017999,2]
[406963983,1772363444149,-156.226,0.00017999,2]
[406963984,1772363444159,-10379.9810243,0.00017999,2]
[406963985,1772363444168,-1729.1219532,0.00017999,2]
[406963986,1772363444177,-56265.1042954,0.00017999,2]
[406963987,1772363444186,-500.0,0.00017999,2]
[406963988,1772363444195,-500.0,0.00017999,2]
[406963989,1772363444204,-500.0,0.00017999,2]
[406963990,1772363444213,-500.0,0.00017999,2]
[406963991,1772363444222,-500.0,0.00017999,2]
[406963992,1772363444232,-500.0,0.00017999,2]
[406963993,1772363444241,-500.0,0.00017999,2]
[406963994,1772363444251,-500.0,0.00017999,2]
[406963995,1772363444260,-595.07228117,0.00017999,2]
[406963996,1772363444269,-6504.2296468,0.00017999,2]
[406963997,1772363444279,-219.8714796,0.00017999,2]
[406963998,1772363444288,-4888.4206525,0.00017999,2]
[406963999,1772363444298,-287.24701665,0.00017999,2]
[406964000,1772363444307,-500.0,0.00017999,2]
[406964001,1772363444317,-330.61629648,0.00017999,2]
[406964002,1772363444326,-2259.5761575,0.00017999,2]
[406964003,1772363444335,-500.0,0.00017999,2]
[406964004,1772363444344,-564.87520289,0.00017999,2]
[406964005,1772363444354,-9819.3554235,0.00017999,2]
[406964006,1772363444363,-300.0,0.00017999,2]
[406964007,1772363444372,-300.0,0.00017999,2]
[406964008,1772363444382,-352.47562623,0.00017999,2]
[406964009,1772363444391,-192.44937759,0.00017999,2]
[406964010,1772363444400,-924557.89086772,0.00018,2]
[406964011,1772363444413,-515.33514158,0.00018,2]
[406964012,1772363444424,-2418.88087544,0.00018,2]
[406964013,1772363444435,-2327.56898777,0.00018,2]
[406964014,1772363444644,-4610.80821502,0.00015467,2]
[406964030,1772363446077,-1003.0,0.00015467,2]
[406964031,1772363446449,-11528.13670872,0.00015467,2]
[406964032,1772363446459,-17141.94492374,0.00016278,2]
[406964033,1772363446471,-21737.26272797,0.00018,2]
[406964034,1772363446483,-502.23926316,0.00018,2]
[406964072,1772364631275,-300.0,9.507e-05,2]
[406964073,1772364631285,-554.31250193,9.507e-05,2]
[406964074,1772364631297,-645.68749807,9.507e-05,2]
[406964075,1772364631306,-8.26062285,9.507e-05,2]
[406964076,1772364631326,-289.88510599,9.507e-05,2]
[406964077,1772364631382,-1.85427116,9.507e-05,2]
[406964078,1772364631392,-300.0,9.507e-05,2]
[406964079,1772364631401,-250.0,9.507e-05,2]
[406964080,1772364631410,-195.0,9.508e-05,2]
[406964081,1772364631420,-14501.67,9.508e-05,2]
[406964082,1772364631429,-638.29,9.553e-05,2]
[406964083,1772364631438,-195.0,9.595e-05,2]
[406964084,1772364631448,-16518.32,9.606e-05,2]
[406964085,1772364631457,-239.91540389,9.8e-05,2]
[406964086,1772364631466,-12425.85,9.801e-05,2]
[406964087,1772364631476,-1000.0,9.825e-05,2]
[406964088,1772364631485,-150.0,9.999e-05,2]
[406964089,1772364631495,-314.2841788,0.0001,2]
[406964090,1772364631510,-337.0,0.0001,2]
[406964091,1772364631520,-337.0,0.0001,2]
[406964092,1772364631530,-1604.55709843,0.0001,2]
[406964093,1772364631540,-259.35,0.00010016,2]
[406964094,1772364631550,-459.0,0.00010038,2]
[406964095,1772364631559,-2124.46,0.00010078,2]
[406964096,1772364631569,-638.29,0.00010084,2]
[406964097,1772364631579,-166.712537,0.00010128,2]
[406964098,1772364631589,-173.106465,0.00010131,2]
[406964099,1772364631598,-358.0,0.00010224,2]
[406964100,1772364631608,-1069.0,0.0001024,2]
[406964101,1772364631618,-500.0,0.00010324,2]
[406964102,1772364631627,-23105.91,0.00010356,2]
[406964103,1772364631636,-4503.75595025,0.00010379,2]
[406964104,1772364631646,-158.0707687,0.00010384,2]
[406964105,1772364631655,-291.88203118,0.00010384,2]
[406964106,1772364631665,-150.0,0.00010384,2]
[406964107,1772364631674,-500.0,0.00010384,2]
[406964108,1772364631683,-500.0,0.00010384,2]
[406964109,1772364631693,-500.0,0.00010384,2]
[406964110,1772364631702,-500.0,0.00010384,2]
[406964111,1772364631711,-500.0,0.00010384,2]
[406964112,1772364631720,-500.0,0.00010384,2]
[406964113,1772364631730,-150.0,0.00010384,2]
[406964114,1772364631739,-150.0,0.00010384,2]
[406964115,1772364631748,-150.0,0.00010384,2]
[406964116,1772364631758,-500.0,0.00010384,2]
[406964117,1772364631767,-150.0,0.00010384,2]
[406964118,1772364631777,-150.0,0.00010384,2]
[406964119,1772364631786,-500.0,0.00010384,2]
[406964120,1772364631981,-150.0,0.00010384,2]
[406964121,1772364631993,-150.0,0.00010384,2]
[406964122,1772364632006,-150.0,0.00010384,2]
[406964123,1772364632016,-158.97400468,0.00010384,2]
[406964124,1772364632027,-500.0,0.00010384,2]
[406964125,1772364632036,-500.0,0.00010384,2]
[406964126,1772364632046,-500.0,0.00010384,2]
[406964127,1772364632055,-500.0,0.00010384,2]
[406964128,1772364632064,-500.0,0.00010384,2]
[406964129,1772364632074,-150.0,0.00010384,2]
[406964130,1772364632084,-150.0,0.00010384,2]
[406964131,1772364632093,-339.02054005,0.00010384,2]
[406964132,1772364632104,-150.0,0.00010389,2]
[406964133,1772364632114,-150.0,0.00010389,2]
[406964134,1772364632123,-500.0,0.00010389,2]
[406964135,1772364632133,-214.56343636,0.00010389,2]
[406964136,1772364632143,-500.0,0.00010389,2]
[406964137,1772364632154,-161.1779493,0.00010389,2]
[406964138,1772364632164,-150.0,0.00010389,2]
[406964139,1772364632173,-500.0,0.00010389,2]
[406964140,1772364632183,-500.0,0.00010389,2]
[406964141,1772364632193,-150.0,0.00010439,2]
[406964142,1772364632206,-500.0,0.00010439,2]
[406964143,1772364632220,-500.0,0.00010439,2]
[406964144,1772364632230,-500.0,0.00010439,2]
[406964145,1772364632240,-500.0,0.00010439,2]
[406964146,1772364632251,-500.0,0.00010439,2]
[406964147,1772364632263,-500.0,0.00010439,2]
[406964148,1772364632275,-186.40230494,0.00010439,2]
[406964149,1772364632285,-157.5868329,0.00010439,2]
[406964150,1772364632294,-178.97913184,0.00010439,2]
[406964151,1772364632304,-579.76385006,0.00010439,2]
[406964152,1772364632314,-150.0,0.00010439,2]
[406964153,1772364632324,-155.27024953,0.00010439,2]
[406964154,1772364632333,-500.0,0.00010439,2]
[406964155,1772364632343,-150.0,0.00010439,2]
[406964156,1772364632352,-162.2713494,0.00010439,2]
[406964157,1772364632362,-500.0,0.00010439,2]
[406964158,1772364632371,-500.0,0.00010439,2]
[406964159,1772364632381,-500.0,0.00010439,2]
[406964160,1772364632391,-500.0,0.00010439,2]
[406964161,1772364632404,-500.0,0.00010439,2]
[406964162,1772364632414,-254.18129917,0.00010444,2]
[406964163,1772364632423,-150.0,0.00010444,2]
[406964164,1772364632433,-553.10721264,0.00010444,2]
[406964165,1772364632443,-500.0,0.00010444,2]
[406964166,1772364632452,-150.0,0.00010444,2]
[406964167,1772364632462,-500.0,0.00010444,2]
[406964168,1772364632471,-195.0,0.00010458,2]
[406964169,1772364632481,-250.0,0.00010458,2]
[406964170,1772364632490,-378.0,0.00010458,2]
[406964171,1772364632500,-1680.0,0.00010458,2]
[406964172,1772364632510,-8088.33498697,0.00010464,2]
[406964173,1772364632520,-150.0,0.00010494,2]
[406964174,1772364632530,-256.63969308,0.00010494,2]
[406964175,1772364632540,-500.0,0.00010494,2]
[406964176,1772364632550,-500.0,0.00010494,2]
[406964177,1772364632559,-500.0,0.00010494,2]
[406964178,1772364632569,-500.0,0.00010494,2]
[406964179,1772364632579,-500.0,0.00010494,2]
[406964180,1772364632589,-150.0,0.00010494,2]
[406964181,1772364632600,-500.0,0.00010494,2]
[406964182,1772364632610,-150.0,0.00010494,2]
[406964183,1772364632620,-355.70401297,0.00010494,2]
[406964184,1772364632629,-500.0,0.00010494,2]
[406964185,1772364632639,-500.0,0.00010494,2]
[406964186,1772364632650,-500.0,0.00010494,2]
[406964187,1772364632660,-615.94619115,0.00010494,2]
[406964188,1772364632670,-400.0,0.00010499,2]
[406964189,1772364632680,-150.0,0.00010499,2]
[406964190,1772364632689,-500.0,0.00010499,2]
[406964191,1772364632698,-207.76379391,0.00010548,2]
[406964192,1772364632708,-500.0,0.00010548,2]
[406964193,1772364632718,-453.66172219,0.00010548,2]
[406964194,1772364632728,-500.0,0.00010548,2]
[406964195,1772364632738,-500.0,0.00010548,2]
[406964196,1772364632748,-500.0,0.00010548,2]
[406964197,1772364632757,-230.5137839,0.00010548,2]
[406964198,1772364632767,-500.0,0.00010548,2]
[406964199,1772364632777,-152.83663743,0.00010548,2]
[406964200,1772364632787,-500.0,0.00010548,2]
[406964201,1772364632796,-500.0,0.00010548,2]
[406964202,1772364632806,-500.0,0.00010548,2]
[406964203,1772364632816,-151.0,0.00010551,2]
[406964204,1772364632825,-26209.8005031,0.00010554,2]
[406964205,1772364632838,-3208.58780444,0.00010554,2]
[406964207,1772364637479,-100518.89761755,0.00010554,2]
[406964208,1772364637491,-789029.56497491,0.00010554,2]
[406964209,1772364637501,-4134.0212,0.00010564,2]
[406964210,1772364637510,-155.23642036,0.000106,2]
[406964211,1772364637520,-352.14966213,0.000106,2]
[406964212,1772364637530,-3300.0,0.000106,3]
[406964213,1772364637540,-8404.94623737,0.000106,2]
[406964214,1772364637549,-2886.17628066,0.000106,2]
[406964215,1772364637558,-167.33799581,0.000106,2]
[406964216,1772364637568,-768.03546614,0.000106,2]
[406964217,1772364637577,-500.0,0.00010603,2]
[406964218,1772364637587,-500.0,0.00010603,2]
[406964219,1772364637596,-500.0,0.00010603,2]
[406964220,1772364637605,-500.0,0.00010603,2]
[406964221,1772364637615,-500.0,0.00010603,2]
[406964222,1772364637624,-500.0,0.00010603,2]
[406964223,1772364637633,-500.0,0.00010603,2]
[406964224,1772364637643,-500.0,0.00010603,2]
[406964225,1772364637653,-638.29,0.00010614,2]
[406964226,1772364637663,-252.06444586,0.0001062,2]
[406964227,1772364637672,-159.01160846,0.0001062,2]
[406964228,1772364637683,-372.0,0.0001063,2]
[406964229,1772364637692,-392.0,0.0001063,2]
[406964230,1772364637701,-603.37164068,0.00010654,2]
[406964231,1772364637711,-603.37164068,0.00010654,2]
[406964232,1772364637720,-151.0,0.00010657,2]
[406964233,1772364637729,-151.0,0.00010657,2]
[406964234,1772364637739,-500.0,0.00010657,2]
[406964235,1772364637748,-151.0,0.00010657,2]
[406964236,1772364637758,-500.0,0.00010657,2]
[406964237,1772364637767,-151.0,0.00010657,2]
[406964238,1772364637777,-500.0,0.00010657,2]
[406964239,1772364637786,-151.0,0.00010657,2]
[406964240,1772364637795,-500.0,0.00010657,2]
[406964242,1772364637805,-500.0,0.00010657,2]
[406964243,1772364637814,-151.0,0.00010657,2]
[406964244,1772364637824,-500.0,0.00010657,2]